bitfinex/quotes_ETHUSD_20251221
["timestamp","ask_amount","ask_price","bid_price","bid_amount"]
[1766330098615,6.4157,2970.9,2970.3,2.54510743]
[1766330099212,2.3784,2971.0,2970.3,2.54510743]
[1766330099536,4.0373,2970.9,2970.3,2.54510743]
[1766330099733,6.4157,2970.8,2970.3,2.54510743]
[1766330100913,2.3784,2970.9,2970.1,0.428]
[1766330101141,8.00989543,2971.1,2970.1,0.428]
[1766330101142,2.3784,2970.5,2970.1,0.428]
[1766330101343,6.4157,2970.5,2970.1,0.002]
[1766330101518,0.43,2970.7,2970.1,0.002]
[1766330101712,2.3784,2970.5,2969.9,0.002]
[1766330101931,4.0373,2970.3,2969.9,0.002]
[1766330102244,4.0373,2970.4,2969.9,0.002]
[1766330102427,6.4157,2970.4,2969.9,0.002]
[1766330103047,6.4157,2970.4,2969.9,2.5343]
[1766330103237,6.4157,2970.6,2970.0,2.5299]
[1766330103543,0.43,2970.7,2969.9,0.002]
[1766330103913,4.0373,2970.4,2969.9,0.002]
[1766330104118,6.8457,2970.7,2970.0,2.5276]
[1766330104318,3.38232222,2971.4,2970.1,0.0336689]
[1766330104319,0.001,2971.0,2970.1,0.0336689]
[1766330104543,0.001,2971.0,2970.4,0.806]
[1766330104844,6.8457,2971.4,2970.7,0.806]
[1766330105048,6.8457,2971.4,2970.8,1.7206]
[1766330105219,6.8457,2971.4,2970.8,2.5266]
[1766330106424,6.4337,2971.3,2970.8,2.5266]
[1766330106852,6.4337,2971.3,2970.6,0.806]
[1766330107052,6.4337,2971.3,2970.6,2.5198]
[1766330107349,6.4337,2971.3,2970.7,1.7116]
[1766330107551,6.4337,2971.3,2970.7,2.5176]
[1766330111527,6.4347,2971.3,2970.7,2.5176]
[1766330112756,6.4337,2971.2,2970.6,0.002]
[1766330113059,2.4026,2971.1,2970.6,0.002]
[1766330113258,2.4026,2971.1,2970.6,2.28823014]
[1766330113453,2.4026,2971.1,2970.6,3.09423014]
[1766330115561,6.4337,2971.2,2970.7,2.5007]
[1766330119210,0.001,2971.3,2970.6,1.01553014]
[1766330119488,0.43,2971.6,2970.8,2.4907]
[1766330119663,0.43,2971.6,2971.0,0.805]
[1766330119990,0.43,2971.6,2971.1,1.6857]
[1766330119991,6.8637,2971.6,2971.1,1.6857]
[1766330120589,6.8637,2971.8,2971.2,2.4888]
[1766330120888,6.4337,2972.0,2971.2,2.4888]
[1766330121086,6.8637,2972.0,2971.4,0.805]
[1766330121254,6.8637,2972.0,2971.0,7.15771848]
[1766330121255,6.8637,2972.0,2971.5,2.4869]
[1766330121656,5.65826529,2972.4,2971.6,1.6809]
[1766330121657,1.01122629,2972.4,2971.6,1.6809]
[1766330121852,1.01122629,2972.4,2971.7,0.805]
[1766330122053,6.8647,2972.5,2971.7,0.805]
[1766330122795,0.001,2972.5,2971.9,0.805]
[1766330123772,0.001,2972.5,2972.0,2.4811]
[1766330124453,0.001,2972.5,2971.8,0.426]
[1766330124658,0.001,2972.5,2972.0,0.805]
[1766330124859,6.4347,2972.5,2972.0,2.4793]
[1766330125060,6.4337,2972.4,2971.8,2.9053]
[1766330126703,0.001,2972.5,2971.9,1.6689]
[1766330126860,0.001,2972.5,2972.0,0.805]
[1766330127254,0.001,2972.5,2972.0,0.28999]
[1766330127573,0.001,2972.5,2972.1,2.4721]
[1766330130794,0.001,2972.6,2972.1,2.4721]
[1766330132292,0.001,2972.6,2971.9,3.36477163]
[1766330132588,0.001,2972.6,2972.2,2.4626]
[1766330133766,0.001,2972.6,2971.8,0.426]
[1766330133988,0.001,2972.6,2972.0,2.461]
[1766330134390,4.1988,2972.5,2971.8,0.426]
[1766330134591,6.7739,2972.4,2971.8,0.426]
[1766330134776,6.7739,2972.4,2971.8,2.8854]
[1766330135275,4.151,2972.0,2971.3,0.002]
[1766330135482,4.151,2971.8,2971.3,0.002]
[1766330135774,0.43,2971.9,2971.3,0.002]
[1766330135775,5.077039,2971.9,2971.3,0.002]
[1766330135993,5.077039,2971.9,2970.9,0.426]
[1766330135994,4.151,2971.5,2970.9,0.426]
[1766330136168,6.6611,2971.5,2970.9,0.426]
[1766330136368,6.6611,2971.5,2970.9,2.8826]
[1766330136570,0.43,2971.5,2970.8,0.002]
[1766330136971,0.43,2971.5,2970.9,1.6526]
[1766330137295,0.43,2971.5,2970.9,2.4566]
[1766330137473,7.0911,2971.5,2970.9,2.4566]
[1766330139803,3.79534381,2971.5,2970.8,0.002]
[1766330139988,4.151,2970.6,2969.9,0.002]
[1766330140188,4.151,2970.8,2969.9,0.002]
[1766330140391,0.43,2970.7,2970.2,2.4546]
[1766330140984,2.5101,2971.3,2970.3,4.647039]
[1766330141179,0.43,2971.2,2970.6,2.4546]
[1766330142891,6.6611,2971.3,2970.9,0.002]
[1766330143079,0.43,2971.2,2970.9,0.002]
[1766330144897,1.01145472,2971.5,2970.9,0.002]
[1766330145110,0.43,2971.4,2970.9,0.002]
[1766330145308,0.43,2971.4,2970.9,0.24708]
[1766330145509,0.43,2971.4,2970.9,2.69448]
[1766330146219,0.43,2971.4,2971.0,2.446]
[1766330146516,4.151,2971.6,2971.0,1.642]
[1766330146826,0.43,2971.5,2971.0,2.446]
[1766330147531,2.5101,2971.7,2971.0,0.269308]
[1766330147825,2.5101,2971.7,2970.9,0.002]
[1766330147826,2.9401,2971.7,2971.1,2.4446]
[1766330149608,2.5101,2971.7,2971.1,2.4446]
[1766330149830,0.43,2971.6,2971.1,2.4446]
[1766330150023,2.5101,2971.7,2971.1,2.4446]
[1766330150308,7.51599428,2971.8,2971.2,1.6366]
[1766330150309,4.581,2971.8,2971.2,1.6366]
[1766330150509,4.581,2971.8,2971.2,2.4406]
[1766330150837,0.43,2971.8,2971.3,2.4406]
[1766330151037,0.001,2971.6,2971.3,2.4406]
[1766330151200,0.001,2971.6,2971.3,0.24406]
[1766330151404,0.43,2972.1,2971.3,0.24406]
[1766330151633,0.43,2972.1,2971.5,0.804]
[1766330151835,0.43,2972.1,2971.5,2.4383]
[1766330152237,3.79465938,2972.1,2971.5,2.4383]
[1766330152442,6.6611,2972.0,2971.3,2.68106]
[1766330153129,6.6611,2972.0,2971.4,0.268106]
[1766330153437,11.80658216,2972.1,2971.0,0.428]
[1766330153606,4.6472634,2971.9,2971.0,0.428]
[1766330153807,2.5101,2971.5,2971.0,0.428]
[1766330154140,4.151,2971.2,2971.0,0.002]
[1766330154434,2.5101,2971.3,2971.0,0.002]
[1766330155247,6.6611,2971.3,2971.0,0.002]
[1766330155629,3.36501075,2971.8,2971.0,0.002]
[1766330155811,2.5101,2971.6,2971.0,0.002]
[1766330156235,0.43,2971.5,2971.0,0.002]
[1766330156422,0.43,2971.5,2971.1,2.4321]
[1766330158143,0.43,2971.5,2971.0,0.002]
[1766330158733,3.36503041,2971.8,2971.0,0.002]
[1766330158934,7.0911,2971.7,2971.0,2.4317]
[1766330159239,6.6611,2971.6,2971.0,2.4317]
[1766330160542,3.79508184,2971.7,2971.0,0.002]
[1766330161147,6.6611,2971.6,2971.0,0.002]
[1766330161311,3.79508184,2971.7,2971.0,0.002]
[1766330161512,6.6611,2971.5,2971.0,0.002]
[1766330162955,3.79508184,2971.7,2971.0,0.002]
[1766330163452,6.6611,2971.5,2971.0,0.002]
[1766330163658,0.001,2971.8,2971.0,0.002]
[1766330163957,0.43,2971.7,2971.2,2.4239]
[1766330164438,7.0911,2971.7,2971.2,2.4239]
[1766330164765,7.0911,2971.7,2971.0,0.002]
[1766330165063,7.0911,2971.7,2971.0,2.4237]
[1766330165359,7.0911,2971.7,2971.1,2.4206]
[1766330165527,6.6072,2971.6,2971.0,0.002]
[1766330167078,0.43,2971.7,2971.1,1.6155]
[1766330167362,0.43,2971.7,2971.2,2.4184]
[1766330168469,9.97316683,2971.8,2971.2,2.4184]
[1766330168767,0.43,2971.7,2971.2,2.4184]
[1766330168967,0.001,2971.8,2971.0,0.002]
[1766330169169,0.001,2972.6,2971.7,1.5811]
[1766330169170,3.36424277,2972.5,2971.7,1.5811]
[1766330169367,6.6072,2972.4,2971.8,2.3841]
[1766330170059,9.97155496,2972.4,2971.8,2.3841]
[1766330171434,13.33592293,2972.4,2971.8,2.3841]
[1766330173079,9.97155496,2972.4,2971.8,2.3841]
[1766330175161,9.97155496,2972.4,2971.2,3.79158144]
[1766330175465,9.97155496,2972.4,2971.4,2.2887]
[1766330175839,9.97155496,2972.4,2971.3,0.37915814]
[1766330176039,9.97155496,2972.4,2971.5,0.803]
[1766330176275,9.97155496,2972.4,2971.6,1.4705]
[1766330176474,9.97155496,2972.4,2971.7,2.2735]
[1766330177178,9.97155496,2972.4,2971.3,0.37915814]
[1766330177342,9.97155496,2972.4,2971.7,0.803]
[1766330177545,9.97155496,2972.4,2971.7,2.2584]
[1766330178181,13.33592293,2972.4,2971.7,2.2584]
[1766330178582,6.6072,2972.3,2971.7,2.2584]
[1766330178752,6.6082,2972.2,2971.7,2.2584]
[1766330179449,3.36462433,2972.1,2971.5,2.2287]
[1766330179649,6.6072,2972.0,2971.5,1.4257]
[1766330179851,4.1266,2971.8,2971.0,2.2307]
[1766330180071,7.15924866,2972.1,2971.0,0.002]
[1766330180284,4.1266,2972.0,2971.0,0.002]
[1766330180487,4.1266,2971.8,2971.0,0.002]
[1766330180693,6.6072,2971.6,2971.0,0.002]
[1766330180853,6.6072,2971.6,2971.0,2.2162]
[1766330181054,2.4806,2971.3,2971.0,0.002]
[1766330181395,6.6072,2971.2,2971.0,0.002]
[1766330181594,9.97287052,2971.2,2970.9,0.002]
[1766330181882,6.6072,2971.1,2970.9,0.002]
[1766330183378,6.6072,2971.1,2971.0,0.002]
[1766330185957,3.79561646,2971.3,2970.4,2.553]
[1766330185958,3.79557245,2971.3,2970.4,2.553]
[1766330186159,6.366,2971.2,2970.5,2.1099]
[1766330189064,6.366,2971.2,2970.5,0.7941]
[1766330189277,6.366,2971.2,2970.5,2.0835]
[1766330189764,2.384,2971.1,2970.5,2.0835]
[1766330189988,6.366,2971.1,2970.5,2.0835]
[1766330190911,3.79553686,2971.3,2970.4,2.7163]
[1766330191196,3.79553686,2971.3,2970.5,0.002]
[1766330191688,2.384,2971.1,2970.5,0.002]
[1766330191895,6.366,2971.1,2970.5,2.0188]
[1766330192726,6.796,2971.3,2970.5,0.002]
[1766330192903,6.796,2971.3,2970.5,0.4069837]
[1766330193090,6.796,2971.3,2970.6,1.9987]
[1766330193411,6.796,2971.3,2970.6,1.226]
[1766330193616,6.796,2971.3,2970.7,1.9808]
[1766330195117,6.366,2971.3,2970.7,1.9808]
[1766330195321,0.43,2971.2,2970.7,1.9808]
[1766330196020,0.43,2971.2,2970.7,0.7548]
[1766330196202,0.43,2971.2,2970.8,1.1897]
[1766330196404,0.43,2971.2,2970.8,1.9245]
[1766330196622,3.36531265,2971.5,2970.8,1.9245]
[1766330196822,0.001,2971.6,2970.8,1.1779]
[1766330197024,0.001,2971.6,2970.7,1.9127]
[1766330197230,0.43,2971.5,2970.7,3.36619726]
[1766330197431,0.43,2971.5,2970.8,1.8957]
[1766330197629,6.8509,2971.5,2971.0,1.8957]
[1766330198000,10.21621848,2971.5,2971.0,1.8957]
[1766330198201,6.4209,2971.4,2970.7,1.879]
[1766330199035,11.80733425,2971.5,2970.6,0.002]
[1766330199201,2.513,2971.1,2970.6,0.002]
[1766330199402,3.7957955,2971.1,2970.6,0.002]
[1766330199702,6.4209,2970.9,2970.6,0.002]
[1766330201231,3.9079,2971.0,2970.5,0.002]
[1766330201525,3.79580851,2971.1,2970.5,0.002]
[1766330201526,3.9079,2970.8,2970.5,0.002]
[1766330201730,3.79580851,2971.1,2970.5,0.002]
[1766330201731,6.4209,2971.0,2970.5,0.002]
[1766330201926,3.36580851,2971.1,2970.5,0.002]
[1766330202129,6.4209,2970.8,2970.5,0.002]
[1766330202632,0.43,2971.0,2970.5,0.002]
[1766330202926,3.9079,2970.7,2969.9,2.243]
[1766330203130,3.9079,2970.7,2970.0,1.816]
[1766330203131,6.4209,2970.7,2970.0,1.816]
[1766330203434,6.4209,2970.7,2969.9,3.79607867]
[1766330203632,0.001,2971.6,2970.5,4.64669729]
[1766330203847,0.001,2971.6,2970.6,2.9717]
[1766330204003,3.9079,2971.9,2970.7,2.5447]
[1766330205524,3.9079,2971.9,2970.9,2.5447]
[1766330206514,3.9079,2971.9,2971.0,0.427]
[1766330206717,3.9079,2971.9,2971.1,2.5447]
[1766330206910,3.9079,2971.9,2971.3,2.5447]
[1766330207099,4.3379,2971.9,2971.3,2.5447]
[1766330209237,2.513,2971.4,2970.6,6.33800258]
[1766330209422,7.15974908,2971.9,2970.6,3.79330258]
[1766330209423,6.4209,2971.3,2970.6,3.79330258]
[1766330209630,6.4209,2971.7,2970.8,2.5447]
[1766330210235,6.4209,2971.6,2970.8,2.5447]
[1766330210407,3.9079,2971.5,2970.8,2.5447]
[1766330210803,6.4209,2971.8,2970.8,2.5447]
[1766330211029,4.3379,2971.7,2971.0,2.5447]
[1766330211426,6.4209,2972.1,2971.0,2.5447]
[1766330211626,6.4209,2972.1,2971.2,2.5447]
[1766330211841,6.8509,2972.1,2971.2,2.5447]
[1766330212227,0.43,2972.1,2971.2,2.5447]
[1766330212437,6.4209,2972.0,2971.3,2.79917]
[1766330213120,3.9079,2971.9,2971.3,2.79917]
[1766330213346,2.513,2972.0,2971.3,2.79917]
[1766330214779,9.78565459,2972.0,2971.3,2.79917]
[1766330214924,3.9079,2971.8,2971.0,0.427]
[1766330215241,3.9079,2971.6,2971.0,2.9717]
[1766330215627,4.3389,2971.7,2971.1,2.5447]
[1766330215949,6.4209,2971.5,2970.7,2.9717]
[1766330216256,6.4209,2971.5,2970.9,2.5447]
[1766330216546,3.9079,2971.5,2970.9,2.5447]
[1766330217615,2.513,2971.5,2970.8,0.63400017]
[1766330217853,3.9079,2971.4,2970.8,3.17870017]
[1766330218039,3.9079,2971.4,2970.8,2.5447]
[1766330218950,2.513,2971.4,2970.8,2.5447]
[1766330219140,3.9079,2971.3,2970.8,2.5447]
[1766330219539,3.36532271,2971.5,2970.7,0.427]
[1766330219540,6.4209,2971.2,2970.7,0.427]
[1766330220223,6.4209,2971.2,2970.6,2.5467]
[1766330220224,3.9079,2971.1,2970.6,2.5467]
[1766330220817,3.9079,2971.1,2970.6,2.84407]
[1766330221218,3.9079,2971.0,2970.6,0.29937]
[1766330221443,3.9079,2970.8,2970.6,0.002]
[1766330222654,3.9079,2970.8,2970.1,0.002]
[1766330222655,2.513,2970.6,2970.1,0.002]
[1766330222855,6.4209,2970.5,2970.1,0.002]
[1766330224731,2.513,2970.5,2970.1,0.002]
[1766330225064,0.431,2970.7,2970.1,0.002]
[1766330225065,3.9079,2970.4,2970.1,0.002]
[1766330225230,6.2435,2970.4,2970.1,0.002]
[1766330225733,6.0007,2970.4,2970.1,0.002]
[1766330226132,6.0007,2970.4,2970.0,0.002]
[1766330226337,3.6651,2970.3,2970.0,0.002]
[1766330229443,2.3356,2970.4,2970.0,0.002]
[1766330229683,2.7666,2970.4,2970.0,0.002]
[1766330229879,3.6651,2970.5,2970.0,0.002]
[1766330230092,3.6651,2970.5,2970.0,2.4369]
[1766330230093,0.431,2970.5,2970.0,2.4369]
[1766330230283,4.0961,2970.5,2970.0,2.4369]
[1766330230580,6.0007,2970.4,2970.0,0.002]
[1766330231153,2.3356,2970.3,2970.0,0.002]
[1766330231355,6.0007,2970.3,2970.0,0.002]
[1766330232181,3.6651,2970.2,2970.0,0.002]
[1766330232491,3.6651,2969.9,2969.6,0.002]
[1766330232865,6.98508586,2970.0,2969.6,0.002]
[1766330232866,6.0007,2969.8,2969.6,0.002]
[1766330233165,6.0007,2969.8,2969.3,2.4369]
[1766330233486,4.64948586,2969.7,2968.9,0.002]
[1766330233681,6.0007,2969.5,2968.9,0.002]
[1766330233884,2.3356,2969.1,2968.5,2.4349]
[1766330234057,3.6651,2969.1,2968.5,2.4349]
[1766330234257,3.6651,2969.1,2968.8,0.002]
[1766330234683,6.99031183,2969.2,2968.8,0.002]
[1766330234896,4.0961,2969.3,2968.8,0.002]
[1766330235264,6.0007,2969.1,2968.8,0.002]
[1766330235567,3.6651,2968.9,2968.4,2.8619]
[1766330235763,3.6651,2968.9,2968.5,0.28619]
[1766330235966,2.3356,2969.0,2968.5,0.28619]
[1766330236572,6.0007,2969.0,2968.5,0.28619]
[1766330237467,3.6651,2968.9,2968.4,0.427]
[1766330237668,3.6651,2968.9,2968.4,2.8619]
[1766330238194,6.0007,2968.9,2968.4,0.427]
[1766330238368,6.0007,2969.2,2968.4,2.4349]
[1766330238573,0.431,2969.1,2968.4,2.4349]
[1766330240094,4.0961,2969.1,2968.4,2.4349]
[1766330240299,3.6651,2969.0,2968.4,2.4349]
[1766330240598,6.0007,2968.8,2968.1,0.427]
[1766330240802,6.0007,2968.8,2968.1,2.8619]
[1766330240962,3.6651,2968.7,2968.1,2.8619]
[1766330241495,4.67733966,2969.1,2968.2,2.4349]
[1766330241696,4.67733966,2969.1,2968.1,0.427]
[1766330241697,3.6651,2968.7,2968.1,0.427]
[1766330241997,3.6651,2968.7,2968.1,2.8619]
[1766330242367,3.6651,2969.0,2968.2,2.46859045]
[1766330242604,0.431,2969.0,2968.2,2.4349]
[1766330243497,0.431,2969.1,2968.2,5.80384812]
[1766330243682,0.431,2969.1,2968.4,2.4349]
[1766330244620,3.6651,2970.2,2968.5,2.4349]
[1766330244766,3.6651,2969.9,2969.0,2.4349]
[1766330245179,6.0007,2969.9,2969.0,2.4349]
[1766330245971,6.0007,2969.9,2969.1,2.4098]
[1766330246912,9.36783375,2969.9,2969.1,2.4098]
[1766330247199,3.4896,2969.7,2969.1,2.4098]
[1766330248600,2.4575,2969.7,2969.1,2.4098]
[1766330248799,3.4896,2969.6,2969.1,2.4098]
[1766330249701,2.4575,2969.4,2968.9,0.427]
[1766330249906,3.4896,2969.5,2968.9,2.8368]
[1766330250073,5.9471,2969.5,2968.9,2.8368]
[1766330250968,3.4906,2969.7,2968.9,2.8368]
[1766330251171,0.431,2969.6,2968.9,2.8368]
[1766330251370,0.431,2969.6,2969.0,2.4098]
[1766330252099,5.9471,2970.0,2969.0,0.62050329]
[1766330252310,3.4896,2969.9,2969.1,2.4098]
[1766330253298,3.4896,2969.9,2969.2,2.4098]
[1766330253778,3.4896,2969.9,2968.9,3.79517804]
[1766330253978,3.4896,2969.9,2969.0,2.7893178]
[1766330254303,6.85671822,2969.9,2969.0,2.7893178]
[1766330254678,9.31421822,2969.9,2969.0,2.7893178]
[1766330254875,5.9471,2969.9,2969.0,2.7893178]
[1766330255411,5.9471,2969.9,2969.0,3.74763924]
[1766330255707,3.9206,2969.9,2969.1,2.68466392]
[1766330258117,3.9216,2969.9,2969.1,2.68466392]
[1766330260317,6.2866,2969.9,2969.1,2.68466392]
[1766330261617,6.2866,2969.9,2969.2,2.2672]
[1766330261618,0.001,2969.9,2969.2,2.2672]
[1766330261822,0.001,2970.4,2969.4,2.2672]
[1766330261996,0.001,2970.4,2969.6,2.2672]
[1766330262322,3.3256,2970.4,2969.8,2.2672]
[1766330262500,5.6906,2970.4,2969.8,2.2672]
[1766330262902,3.3256,2970.3,2969.8,2.2672]
[1766330263514,2.365,2970.4,2969.8,2.2672]
[1766330263714,3.3256,2970.5,2969.8,2.2672]
[1766330265014,3.7566,2970.5,2969.8,2.2672]
[1766330265719,6.1216,2970.5,2969.8,2.2672]
[1766330266323,3.7566,2970.5,2969.8,2.53662]
[1766330266711,8.44660408,2970.5,2969.2,2.6942]
[1766330266910,5.6906,2970.3,2969.3,2.2672]
[1766330267409,3.3256,2970.2,2969.3,2.2672]
[1766330267805,3.3256,2969.8,2969.0,2.2692]
[1766330268711,2.365,2969.8,2969.0,2.2692]
[1766330268913,3.3256,2969.7,2969.0,2.2692]
[1766330269514,3.3256,2969.9,2969.1,2.2672]
[1766330269734,6.69260665,2970.0,2969.1,2.2672]
[1766330270040,2.365,2969.9,2969.1,2.2672]
[1766330271713,9.48857588,2970.1,2969.1,2.2672]
[1766330272017,0.431,2970.0,2969.2,2.2672]
[1766330272523,3.7566,2970.0,2969.2,2.2672]
[1766330273846,6.16308127,2970.0,2969.2,2.2672]
[1766330274146,3.3256,2969.9,2969.2,2.2672]
[1766330274527,3.3266,2969.9,2969.2,2.2672]
[1766330275235,0.001,2969.9,2969.2,2.2672]
[1766330279126,1.0118641,2970.2,2969.2,3.36786513]
[1766330279327,0.431,2970.2,2969.4,2.2672]
[1766330279647,6.1216,2970.2,2969.4,2.2672]
[1766330279854,3.3256,2970.1,2969.4,2.2672]
[1766330280145,5.6906,2970.0,2969.4,2.2672]
[1766330280318,3.3256,2969.8,2969.3,0.427]
[1766330280517,3.3256,2969.8,2969.0,0.002]
[1766330280518,3.3256,2969.6,2969.0,2.6962]
[1766330280834,5.6906,2969.6,2969.0,2.6962]
[1766330284860,5.6906,2969.9,2969.0,3.79713446]
[1766330285046,6.1216,2969.9,2969.1,2.2672]
[1766330285360,6.1216,2969.9,2969.2,2.2871]
[1766330285562,9.48873723,2969.9,2969.2,2.2871]
[1766330285854,3.79812248,2969.9,2969.1,0.60643982]
[1766330286061,3.3434,2969.7,2969.1,2.2871]
[1766330288155,3.36703131,2970.0,2969.1,2.2871]
[1766330288156,5.5746,2970.0,2969.1,2.2871]
[1766330288347,3.7744,2970.0,2969.2,2.2871]
[1766330291337,3.3434,2970.0,2969.2,2.2871]
[1766330293866,3.3434,2969.9,2969.2,2.2871]
[1766330294867,5.5746,2969.9,2969.2,2.2871]
[1766330298249,5.5746,2969.9,2969.3,2.2871]
[1766330299242,3.36804401,2970.0,2969.3,2.2871]
[1766330299442,3.3434,2969.8,2969.3,2.2871]
[1766330304881,0.001,2969.9,2969.3,2.2871]
[1766330305096,0.001,2970.9,2969.6,2.2871]
[1766330305252,3.79740115,2970.6,2969.8,2.2871]
[1766330305570,7.14080115,2970.6,2969.8,2.2871]
[1766330306180,9.37200115,2970.6,2969.8,2.2871]
[1766330308784,3.3434,2970.5,2969.8,2.2871]
[1766330308988,3.3444,2970.4,2969.8,2.2871]
[1766330310386,2.2312,2970.1,2969.4,2.94381]
[1766330310564,3.3434,2969.7,2969.1,2.7151]
[1766330310770,3.3434,2969.7,2969.3,0.002]
[1766330311475,5.5611,2969.7,2969.3,0.002]
[1766330311679,3.3282,2969.6,2969.3,0.002]
[1766330312181,5.5459,2969.6,2969.3,0.002]
[1766330315277,3.1199,2969.5,2969.3,0.002]
[1766330315770,5.3009,2969.3,2969.0,0.002]
[1766330316207,3.79835858,2969.7,2968.1,0.002]
[1766330316208,3.1199,2968.9,2968.1,0.002]
[1766330316510,3.1199,2968.3,2968.1,0.002]
[1766330317003,2.181,2968.4,2968.1,0.002]
[1766330318182,5.3009,2968.4,2968.0,0.002]
[1766330318376,3.1199,2968.4,2968.0,0.002]
[1766330318874,0.431,2968.5,2968.0,0.002]
[1766330319073,3.5509,2968.5,2968.0,0.002]
[1766330319703,3.1199,2968.2,2967.9,0.002]
[1766330320004,3.1199,2968.0,2967.8,0.002]
[1766330320209,3.1199,2967.9,2967.4,3.32195238]
[1766330320503,3.1199,2967.9,2967.4,4.29388373]
[1766330320910,3.1199,2967.9,2967.4,0.97193135]
[1766330321105,3.1199,2967.9,2967.5,3.36983974]
[1766330321306,3.1199,2967.9,2967.5,3.36983993]
[1766330322411,0.431,2968.1,2967.5,5.55883993]
[1766330322707,4.6509127,2969.0,2967.6,2.189]
[1766330322897,3.1199,2969.1,2968.2,2.189]
[1766330323102,3.1199,2969.1,2967.8,4.6509127]
[1766330323103,3.5509,2969.0,2968.3,0.8311]
[1766330323279,3.5509,2969.0,2968.4,2.189]
[1766330323484,5.7319,2969.0,2968.4,2.189]
[1766330323815,3.1199,2968.9,2968.4,3.36878539]
[1766330324115,5.3009,2968.9,2968.3,5.55792503]
[1766330324298,5.7319,2968.9,2968.3,5.55792503]
[1766330324610,3.5509,2968.9,2968.4,3.3688008]
[1766330324910,3.5509,2968.9,2968.4,5.55781363]
[1766330324911,0.431,2968.9,2968.4,5.55781363]
[1766330325087,0.431,2969.0,2968.4,5.55781363]
[1766330325689,2.181,2969.1,2968.4,5.55781363]
[1766330325912,5.3009,2969.4,2968.6,2.189]
[1766330326115,5.7319,2969.3,2968.6,2.189]
[1766330326289,3.1199,2969.2,2968.6,2.189]
[1766330326811,3.5509,2969.2,2968.6,2.189]
[1766330327412,3.1199,2969.2,2968.6,2.189]
[1766330327607,3.5509,2969.2,2968.6,2.189]
[1766330329090,3.5509,2969.2,2968.7,3.36847778]
[1766330329290,3.5509,2969.2,2968.6,5.55754431]
[1766330330804,3.5509,2969.2,2968.6,6.37084431]
[1766330332206,3.1199,2969.2,2968.6,6.37084431]
[1766330332392,3.5509,2969.2,2968.6,6.37084431]
[1766330332934,0.001,2969.3,2968.6,7.22822685]
[1766330333139,0.432,2969.3,2968.9,2.189]
[1766330333421,0.001,2969.3,2968.9,5.45718224]
[1766330333601,0.431,2969.7,2969.0,0.806]
[1766330334207,3.5509,2969.7,2969.0,0.806]
[1766330334723,5.7319,2969.7,2969.0,0.806]
[1766330335322,0.001,2969.3,2969.0,6.36307727]
[1766330335619,3.1199,2969.7,2969.1,2.189]
[1766330335810,0.431,2969.8,2969.2,2.9899]
[1766330336007,5.7319,2969.8,2969.2,2.9899]
[1766330336220,5.7319,2969.8,2969.2,2.189]
[1766330336420,5.3009,2969.8,2969.2,2.189]
[1766330336621,5.7319,2969.8,2969.2,2.189]
[1766330336924,5.3009,2969.8,2969.2,2.189]
[1766330337226,5.7319,2969.8,2969.2,2.189]
[1766330337996,5.3009,2969.8,2969.3,3.36779712]
[1766330338320,0.432,2969.9,2969.4,2.9859]
[1766330340123,5.7329,2969.9,2969.3,3.36779712]
[1766330340426,5.7329,2969.9,2969.2,6.34996574]
[1766330340634,5.7329,2969.9,2969.2,3.95389964]
[1766330340928,5.7329,2969.9,2969.3,3.36776901]
[1766330341096,5.7329,2969.9,2969.2,6.34998041]
[1766330341934,2.613,2969.9,2969.2,6.34998041]
[1766330342130,3.1199,2969.8,2969.3,5.55677677]
[1766330342751,3.1199,2969.8,2969.3,2.189]
[1766330343312,0.432,2969.9,2969.0,3.36810652]
[1766330343610,5.3009,2969.6,2969.1,3.368023]
[1766330344241,5.3009,2969.6,2969.0,3.36813742]
[1766330344443,5.3009,2969.6,2969.0,6.73627484]
[1766330344639,5.3009,2969.6,2969.0,8.92527484]
[1766330345327,5.3009,2969.6,2969.0,5.55713742]
[1766330345534,2.2481,2969.7,2969.0,5.55713742]
[1766330345728,5.5942,2969.6,2969.0,5.55713742]
[1766330346314,0.26801,2969.7,2969.0,3.36813742]
[1766330346509,5.5942,2969.5,2968.9,3.36822476]
[1766330346741,3.3461,2969.4,2968.9,8.91537562]
[1766330347242,3.3461,2969.4,2968.9,5.54712476]
[1766330348046,3.3461,2969.4,2968.9,8.91537562]
[1766330348226,2.2481,2969.5,2969.0,2.1789]
[1766330348842,2.80752,2969.5,2968.9,3.36822476]
[1766330349040,3.3461,2969.4,2968.9,5.54712476]
[1766330349828,5.5942,2969.6,2968.9,6.31112476]
[1766330350227,5.5942,2969.6,2969.0,0.002]
[1766330350726,5.5952,2969.6,2969.0,2.1809]
[1766330350929,0.431,2969.5,2969.0,2.1809]
[1766330351246,0.431,2969.5,2969.0,5.54903444]
[1766330352251,3.7781,2969.6,2969.1,2.9242]
[1766330352846,0.432,2969.6,2969.1,0.7453]
[1766330353157,7.03821771,2969.6,2969.0,0.002]
[1766330353550,7.03821771,2969.6,2969.0,2.1809]